[Event "Estonian Chess Championship 2021"]
[Site "Tallinn, Paul Keres Chess House, Estonia"]
[Date "2021.12.14"]
[Round "4.4"]
[White "Rychagov, Nikita"]
[Black "Hansson, Markus"]
[Result "1-0"]
[TimeControl "90 minutes for first 40 moves and 15 min. for the rest of the game with 30 sec."]
[WhiteFideId "4508394"]
[BlackFideId "4505620"]
[WhiteElo "1985"]
[BlackElo "1662"]

1. e4 {[%clk 01:30:58]} {[%emt 00:00:02]} c5 {[%clk 01:30:54]} {[%emt
00:00:07]} 2. Nf3 {[%clk 01:31:24]} {[%emt 00:00:04]} Nc6 {[%clk 01:31:18]}
{[%emt 00:00:05]} 3. d4 {[%clk 01:31:50]} {[%emt 00:00:04]} cxd4 {[%clk
01:31:42]} {[%emt 00:00:06]} 4. Nxd4 {[%clk 01:32:17]} {[%emt 00:00:03]} Nf6
{[%clk 01:32:01]} {[%emt 00:00:11]} 5. Nc3 {[%clk 01:32:41]} {[%emt 00:00:06]}
e5 {[%clk 01:32:26]} {[%emt 00:00:05]} 6. Ndb5 {[%clk 01:33:05]} {[%emt
00:00:06]} d6 {[%clk 01:32:43]} {[%emt 00:00:12]} 7. Bg5 {[%clk 01:33:11]}
{[%emt 00:00:24]} a6 {[%clk 01:33:07]} {[%emt 00:00:07]} 8. Na3 {[%clk
01:33:36]} {[%emt 00:00:05]} b5 {[%clk 01:33:33]} {[%emt 00:00:04]} 9. Nd5
{[%clk 01:33:57]} {[%emt 00:00:09]} Be7 {[%clk 01:33:56]} {[%emt 00:00:06]} 10.
Bxf6 {[%clk 01:34:21]} {[%emt 00:00:06]} Bxf6 {[%clk 01:34:23]} {[%emt
00:00:03]} 11. c3 {[%clk 01:34:44]} {[%emt 00:00:07]} O-O {[%clk 01:33:23]}
{[%emt 00:01:30]} 12. Nc2 {[%clk 01:35:12]} {[%emt 00:00:03]} Bg5 {[%clk
01:33:28]} {[%emt 00:00:24]} 13. a4 {[%clk 01:35:32]} {[%emt 00:00:11]} bxa4
{[%clk 01:32:48]} {[%emt 00:01:10]} 14. Rxa4 {[%clk 01:35:58]} {[%emt
00:00:04]} a5 {[%clk 01:33:03]} {[%emt 00:00:15]} 15. Bc4 {[%clk 01:36:22]}
{[%emt 00:00:05]} Be6 {[%clk 01:31:02]} {[%emt 00:02:31]} 16. O-O {[%clk
01:26:42]} {[%emt 00:10:10]} Kh8 {[%clk 01:19:48]} {[%emt 00:11:44]} 17. Nce3
{[%clk 01:24:42]} {[%emt 00:02:30]} Bxe3 {[%clk 01:17:16]} {[%emt 00:03:01]} 18.
Nxe3 {[%clk 01:24:58]} {[%emt 00:00:14]} Qd7 {[%clk 00:52:16]} {[%emt
00:25:30]} 19. b3 {[%clk 01:18:38]} {[%emt 00:06:51]} Rfd8 {[%clk 00:48:20]}
{[%emt 00:04:26]} 20. Qc2 {[%clk 01:15:33]} {[%emt 00:03:34]} Qb7 {[%clk
00:30:49]} {[%emt 00:18:01]} 21. Rd1 {[%clk 01:15:39]} {[%emt 00:00:24]} Rab8
{[%clk 00:30:08]} {[%emt 00:01:11]} 22. Ra3 {[%clk 01:12:49]} {[%emt 00:03:20]}
Qe7 {[%clk 00:22:20]} {[%emt 00:08:18]} 23. Bd5 {[%clk 01:08:47]} {[%emt
00:04:32]} Rdc8 {[%clk 00:22:33]} {[%emt 00:00:17]} 24. Nc4 {[%clk 01:08:30]}
{[%emt 00:00:47]} Bxd5 {[%clk 00:15:10]} {[%emt 00:07:53]} 25. exd5 {[%clk
01:05:48]} {[%emt 00:03:12]} Nd8 {[%clk 00:15:29]} {[%emt 00:00:11]} 26. Nxa5
{[%clk 01:05:26]} {[%emt 00:00:51]} Qc7 {[%clk 00:13:44]} {[%emt 00:02:15]} 27.
c4 {[%clk 01:05:37]} {[%emt 00:00:19]} Qc5 {[%clk 00:13:27]} {[%emt 00:00:47]}
28. Raa1 {[%clk 01:05:56]} {[%emt 00:00:11]} Rc7 {[%clk 00:12:41]} {[%emt
00:01:16]} 29. Qc3 {[%clk 01:04:13]} {[%emt 00:02:13]} Ra7 {[%clk 00:04:29]}
{[%emt 00:08:43]} 30. Ra4 {[%clk 01:03:34]} {[%emt 00:01:09]} Rba8 {[%clk
00:04:55]} {[%emt 00:00:04]} 31. b4 {[%clk 01:03:42]} {[%emt 00:00:22]} Qc7
{[%clk 00:05:05]} {[%emt 00:00:20]} 32. Raa1 {[%clk 01:03:52]} {[%emt
00:00:20]} h6 {[%clk 00:05:03]} {[%emt 00:00:32]} 33. g3 {[%clk 01:04:04]}
{[%emt 00:00:17]} f5 {[%clk 00:04:01]} {[%emt 00:01:32]} 34. Nb3 {[%clk
01:04:14]} {[%emt 00:00:20]} Rxa1 {[%clk 00:01:19]} {[%emt 00:03:12]} 35. Rxa1
{[%clk 01:04:37]} {[%emt 00:00:06]} Rxa1+ {[%clk 00:01:48]} {[%emt 00:00:02]}
36. Nxa1 {[%clk 01:04:58]} {[%emt 00:00:09]} e4 {[%clk 00:02:11]} {[%emt
00:00:07]} 37. Nb3 {[%clk 01:04:40]} {[%emt 00:00:48]} Nf7 {[%clk 00:02:23]}
{[%emt 00:00:18]} 38. Nd4 {[%clk 01:03:53]} {[%emt 00:01:17]} Ne5 {[%clk
00:02:40]} {[%emt 00:00:13]} 39. c5 {[%clk 01:04:05]} {[%emt 00:00:18]} dxc5
{[%clk 00:02:55]} {[%emt 00:00:16]} 40. bxc5 {[%clk 01:17:25]} {[%emt
00:02:11]} Qb7 {[%clk 00:18:11]} {[%emt 00:00:12]} 41. c6 {[%clk 01:16:03]}
{[%emt 00:01:52]} Qb1+ {[%clk 00:13:48]} {[%emt 00:04:53]} 42. Kg2 {[%clk
01:16:26]} {[%emt 00:00:08]} f4 {[%clk 00:12:34]} {[%emt 00:01:44]} 43. gxf4
{[%clk 01:15:13]} {[%emt 00:01:43]} Qd1 {[%clk 00:13:01]} {[%emt 00:00:03]} 44.
fxe5 {[%clk 01:15:16]} {[%emt 00:00:27]} e3 {[%clk 00:12:53]} {[%emt 00:00:38]}
45. Qxe3 {[%clk 01:15:14]} {[%emt 00:00:32]} Qg4+ {[%clk 00:13:13]} {[%emt
00:00:09]} 46. Qg3 {[%clk 01:15:27]} {[%emt 00:00:16]} Qe4+ {[%clk 00:13:42]}
{[%emt 00:00:02]} 47. Nf3 {[%clk 01:15:50]} {[%emt 00:00:07]} Qxd5 {[%clk
00:13:55]} {[%emt 00:00:17]} 48. c7 {[%clk 01:16:07]} {[%emt 00:00:13]} Qd7
{[%clk 00:14:21]} {[%emt 00:00:03]} 49. e6 {[%clk 01:14:33]} {[%emt 00:02:04]}
Qxe6 {[%clk 00:14:46]} {[%emt 00:00:04]} 50. h4 {[%clk 01:14:54]} {[%emt
00:00:10]} Kh7 {[%clk 00:14:42]} {[%emt 00:00:34]} 51. Kh2 {[%clk 01:15:09]}
{[%emt 00:00:15]} Qd7 {[%clk 00:14:48]} {[%emt 00:00:23]} 52. Nd4 {[%clk
01:15:16]} {[%emt 00:00:24]} g5 {[%clk 00:14:59]} {[%emt 00:00:19]} 53. hxg5
{[%clk 01:15:33]} {[%emt 00:00:12]} hxg5 {[%clk 00:15:26]} {[%emt 00:00:03]} 54.
Qh3+ {[%clk 01:15:59]} {[%emt 00:00:04]} 1-0

[Event "Estonian Chess Championship 2021"]
[Site "Tallinn, Paul Keres Chess House, Estonia"]
[Date "2021.12.14"]
[Round "4.5"]
[White "Timoshin, Andrei"]
[Black "Pedmanson, Albert"]
[Result "1/2-1/2"]
[TimeControl "90 minutes for first 40 moves and 15 min. for the rest of the game with 30 sec."]
[WhiteFideId "4503503"]
[BlackFideId "4505778"]
[WhiteElo "2150"]
[BlackElo "1888"]

1. e4 {[%clk 01:29:58]} {[%emt 00:01:01]} e5 {[%clk 01:29:47]} {[%emt
00:01:13]} 2. Nf3 {[%clk 01:30:12]} {[%emt 00:00:16]} Nc6 {[%clk 01:30:03]}
{[%emt 00:00:14]} 3. Nc3 {[%clk 01:30:35]} {[%emt 00:00:07]} Nf6 {[%clk
01:30:19]} {[%emt 00:00:14]} 4. d4 {[%clk 01:30:58]} {[%emt 00:00:08]} exd4
{[%clk 01:30:24]} {[%emt 00:00:25]} 5. Nxd4 {[%clk 01:31:26]} {[%emt 00:00:02]}
Bb4 {[%clk 01:30:43]} {[%emt 00:00:10]} 6. Nxc6 {[%clk 01:31:50]} {[%emt
00:00:05]} bxc6 {[%clk 01:31:01]} {[%emt 00:00:12]} 7. Bd3 {[%clk 01:32:13]}
{[%emt 00:00:06]} d5 {[%clk 01:31:16]} {[%emt 00:00:15]} 8. exd5 {[%clk
01:32:36]} {[%emt 00:00:07]} cxd5 {[%clk 01:31:40]} {[%emt 00:00:06]} 9. O-O
{[%clk 01:32:58]} {[%emt 00:00:08]} O-O {[%clk 01:32:00]} {[%emt 00:00:10]} 10.
h3 {[%clk 01:33:22]} {[%emt 00:00:06]} Re8 {[%clk 01:31:39]} {[%emt 00:00:51]}
11. Qf3 {[%clk 01:33:32]} {[%emt 00:00:20]} c6 {[%clk 01:31:54]} {[%emt
00:00:17]} 12. Bf4 {[%clk 01:33:46]} {[%emt 00:00:16]} Nd7 {[%clk 01:31:50]}
{[%emt 00:00:33]} 13. Qg3 {[%clk 01:16:49]} {[%emt 00:17:27]} Nc5 {[%clk
01:19:35]} {[%emt 00:12:46]} 14. Bg5 {[%clk 01:01:01]} {[%emt 00:16:18]} f6
{[%clk 01:14:36]} {[%emt 00:05:29]} 15. Bh6 {[%clk 00:58:35]} {[%emt 00:02:55]}
Qd7 {[%clk 01:14:09]} {[%emt 00:00:57]} 16. Rae1 {[%clk 00:50:54]} {[%emt
00:08:11]} Rxe1 {[%clk 01:12:58]} {[%emt 00:01:42]} 17. Rxe1 {[%clk 00:51:04]}
{[%emt 00:00:20]} Nxd3 {[%clk 01:12:08]} {[%emt 00:01:19]} 18. cxd3 {[%clk
00:47:25]} {[%emt 00:04:09]} d4 {[%clk 01:10:58]} {[%emt 00:01:40]} 19. Re8+
{[%clk 00:17:43]} {[%emt 00:30:12]} Bf8 {[%clk 00:46:09]} {[%emt 00:25:18]} 20.
Ne4 {[%clk 00:18:03]} {[%emt 00:00:11]} Qf7 {[%clk 00:44:10]} {[%emt 00:02:29]}
21. Nd6 {[%clk 00:11:58]} {[%emt 00:06:35]} Qd7 {[%clk 00:39:19]} {[%emt
00:05:22]} 22. Bxg7 {[%clk 00:11:48]} {[%emt 00:00:40]} Qxg7 {[%clk 00:39:32]}
{[%emt 00:00:17]} 23. Nxc8 {[%clk 00:10:01]} {[%emt 00:02:17]} Qxg3 {[%clk
00:38:45]} {[%emt 00:01:16]} 24. fxg3 {[%clk 00:10:31]} Kg7 {[%clk 00:39:02]}
{[%emt 00:00:15]} 25. Rd8 {[%clk 00:09:55]} {[%emt 00:01:06]} Rb8 {[%clk
00:37:39]} {[%emt 00:01:52]} 26. b3 {[%clk 00:08:47]} {[%emt 00:01:38]} a5
{[%clk 00:27:23]} {[%emt 00:10:47]} 27. Kf2 {[%clk 00:05:08]} {[%emt 00:04:09]}
a4 {[%clk 00:23:31]} {[%emt 00:04:23]} 28. bxa4 {[%clk 00:05:36]} {[%emt
00:00:02]} Rb2+ {[%clk 00:23:49]} {[%emt 00:00:11]} 29. Kf3 {[%clk 00:06:03]}
{[%emt 00:00:02]} Rxa2 {[%clk 00:24:10]} {[%emt 00:00:10]} 30. Rxd4 {[%clk
00:05:53]} {[%emt 00:00:40]} Kg6 {[%clk 00:23:28]} {[%emt 00:01:12]} 31. g4
{[%clk 00:05:48]} {[%emt 00:00:34]} Ra3 {[%clk 00:21:41]} {[%emt 00:02:18]} 32.
Ke4 {[%clk 00:05:14]} {[%emt 00:01:03]} Ra2 {[%clk 00:21:31]} {[%emt 00:00:40]}
33. g3 {[%clk 00:04:12]} {[%emt 00:01:32]} Bc5 {[%clk 00:21:47]} {[%emt
00:00:15]} 34. Rc4 {[%clk 00:00:35]} {[%emt 00:04:06]} Re2+ {[%clk 00:21:56]}
{[%emt 00:00:20]} 35. Kf4 {[%clk 00:00:32]} {[%emt 00:00:34]} Rf2+ {[%clk
00:22:08]} {[%emt 00:00:19]} 36. Ke4 {[%clk 00:00:39]} {[%emt 00:00:23]}
1/2-1/2

[Event "Estonian Chess Championship 2021"]
[Site "Tallinn, Paul Keres Chess House, Estonia"]
[Date "2021.12.15"]
[Round "5.1"]
[White "Pedmanson, Albert"]
[Black "Kanep, Meelis"]
[Result "1/2-1/2"]
[TimeControl "90 minutes for first 40 moves and 15 min. for the rest of the game with 30 sec."]
[BlackTitle "GM"]
[WhiteFideId "4505778"]
[BlackFideId "4501047"]
[WhiteElo "1888"]
[BlackElo "2433"]

1. e4 {[%clk 01:30:54]} {[%emt 20:36:50]} d6 {[%clk 01:30:51]} 2. d4 {[%clk
01:29:52]} Nf6 {[%clk 01:31:00]} 3. Nc3 {[%clk 01:26:17]} Nbd7 {[%clk
01:28:16]} 4. Be3 {[%clk 01:23:55]} e5 {[%clk 01:27:40]} 5. f3 {[%clk
01:23:06]} Be7 {[%clk 01:27:38]} 6. Be2 {[%clk 01:16:50]} c6 {[%clk 01:22:07]}
7. Qd2 {[%clk 01:14:36]} O-O {[%clk 01:20:43]} 8. O-O-O {[%clk 01:12:14]}
{[%emt 00:00:06]} b5 {[%clk 01:20:16]} 9. g4 {[%clk 01:09:36]} Qa5 {[%clk
01:14:17]} 10. a3 {[%clk 00:59:53]} {[%emt 00:07:16]} Nb6 {[%clk 00:55:48]}
{[%emt 00:18:59]} 11. Na2 {[%clk 00:48:27]} {[%emt 00:11:56]} Qxd2+ {[%clk
00:50:21]} {[%emt 00:05:56]} 12. Rxd2 {[%clk 00:47:03]} {[%emt 00:01:53]} Be6
{[%clk 00:49:39]} {[%emt 00:01:12]} 13. Nb4 {[%clk 00:35:02]} {[%emt 00:12:32]}
Rfc8 {[%clk 00:45:51]} {[%emt 00:04:18]} 14. d5 {[%clk 00:32:22]} {[%emt
00:03:11]} cxd5 {[%clk 00:45:43]} {[%emt 00:00:38]} 15. Bxb6 {[%clk 00:31:32]}
{[%emt 00:01:20]} axb6 {[%clk 00:45:30]} {[%emt 00:00:43]} 16. exd5 {[%clk
00:31:23]} {[%emt 00:00:40]} Bd7 {[%clk 00:45:19]} {[%emt 00:00:41]} 17. Bd3
{[%clk 00:25:58]} {[%emt 00:05:54]} Rc5 {[%clk 00:40:23]} {[%emt 00:05:26]} 18.
h3 {[%clk 00:22:38]} {[%emt 00:03:50]} g6 {[%clk 00:33:05]} {[%emt 00:07:49]}
19. Ne2 {[%clk 00:19:27]} {[%emt 00:03:41]} Ne8 {[%clk 00:25:39]} {[%emt
00:07:56]} 20. Kb1 {[%clk 00:16:18]} {[%emt 00:03:38]} f5 {[%clk 00:16:15]}
{[%emt 00:09:54]} 21. gxf5 {[%clk 00:12:02]} {[%emt 00:04:47]} gxf5 {[%clk
00:16:43]} {[%emt 00:00:02]} 22. Rg1+ {[%clk 00:11:06]} {[%emt 00:01:26]} Kf7
{[%clk 00:15:28]} {[%emt 00:01:44]} 23. Nc3 {[%clk 00:09:37]} {[%emt 00:01:59]}
Nf6 {[%clk 00:12:31]} {[%emt 00:03:28]} 24. Rdg2 {[%clk 00:09:06]} {[%emt
00:01:00]} Nh5 {[%clk 00:11:52]} {[%emt 00:01:10]} 25. Nc6 {[%clk 00:08:58]}
{[%emt 00:00:38]} Bf6 {[%clk 00:09:28]} {[%emt 00:02:54]} 26. Nxb5 {[%clk
00:07:50]} {[%emt 00:01:38]} Rxd5 {[%clk 00:07:35]} {[%emt 00:02:23]} 27. Bc4
{[%clk 00:04:05]} {[%emt 00:04:16]} Bxc6 {[%clk 00:07:56]} {[%emt 00:00:09]} 28.
Nc7 {[%clk 00:04:22]} {[%emt 00:00:13]} Raa5 {[%clk 00:05:29]} {[%emt
00:02:57]} 29. Rd2 {[%clk 00:03:24]} {[%emt 00:01:28]} Nf4 {[%clk 00:04:25]}
{[%emt 00:01:35]} 30. Rgd1 {[%clk 00:03:35]} {[%emt 00:00:18]} Rac5 {[%clk
00:03:42]} {[%emt 00:01:14]} 31. Bxd5+ {[%clk 00:01:12]} {[%emt 00:02:53]} Nxd5
{[%clk 00:03:12]} {[%emt 00:00:59]} 32. Nxd5 {[%clk 00:01:38]} {[%emt
00:00:04]} Bg5 {[%clk 00:03:11]} {[%emt 00:00:31]} 33. b4 {[%clk 00:01:34]}
{[%emt 00:00:34]} Rc4 {[%clk 00:02:42]} {[%emt 00:00:58]} 34. Nxb6 {[%clk
00:01:35]} {[%emt 00:00:30]} Rh4 {[%clk 00:02:40]} {[%emt 00:00:32]} 35. Rxd6
{[%clk 00:01:39]} {[%emt 00:00:26]} Bxf3 {[%clk 00:02:51]} {[%emt 00:00:18]} 36.
Rg1 {[%clk 00:01:01]} {[%emt 00:01:07]} h6 {[%clk 00:02:08]} {[%emt 00:01:13]}
37. b5 {[%clk 00:00:35]} {[%emt 00:00:57]} Ke7 {[%clk 00:00:44]} {[%emt
00:01:54]} 38. Rd3 {[%clk 00:00:34]} {[%emt 00:00:30]} e4 {[%clk 00:00:51]}
{[%emt 00:00:24]} 39. Rb3 {[%clk 00:00:38]} {[%emt 00:00:25]} e3 {[%clk
00:00:59]} {[%emt 00:00:22]} 40. Re1 {[%clk 00:15:48]} {[%emt 00:00:19]} f4
{[%clk 00:15:59]} {[%emt 00:00:30]} 41. Nc4 {[%clk 00:14:16]} {[%emt 00:02:01]}
Kd8 {[%clk 00:12:24]} {[%emt 00:04:06]} 42. b6 {[%clk 00:14:10]} {[%emt
00:00:36]} Kc8 {[%clk 00:12:21]} {[%emt 00:00:33]} 43. b7+ {[%clk 00:14:00]}
{[%emt 00:00:41]} Bxb7 {[%clk 00:11:18]} {[%emt 00:01:32]} 44. Nd6+ {[%clk
00:11:27]} {[%emt 00:03:03]} Kc7 {[%clk 00:10:06]} {[%emt 00:01:42]} 45. Nxb7
{[%clk 00:10:51]} {[%emt 00:01:06]} f3 {[%clk 00:10:21]} {[%emt 00:00:15]} 46.
Rexe3 {[%clk 00:07:14]} {[%emt 00:04:07]} Bxe3 {[%clk 00:10:33]} {[%emt
00:00:18]} 47. Rxe3 {[%clk 00:07:41]} {[%emt 00:00:04]} Rf4 {[%clk 00:09:17]}
{[%emt 00:01:45]} 48. Re7+ {[%clk 00:06:45]} {[%emt 00:01:25]} Kb6 {[%clk
00:09:30]} {[%emt 00:00:18]} 49. Nd6 {[%clk 00:02:16]} {[%emt 00:04:59]} f2
{[%clk 00:09:08]} {[%emt 00:00:52]} 50. Nc4+ {[%clk 00:02:41]} {[%emt
00:00:05]} Rxc4 {[%clk 00:09:13]} {[%emt 00:00:25]} 51. Rf7 {[%clk 00:03:05]}
{[%emt 00:00:05]} Rh4 {[%clk 00:08:46]} {[%emt 00:00:57]} 52. Rxf2 {[%clk
00:03:20]} {[%emt 00:00:16]} Rxh3 {[%clk 00:09:10]} {[%emt 00:00:06]} 53. Kb2
{[%clk 00:03:44]} {[%emt 00:00:06]} h5 {[%clk 00:09:02]} {[%emt 00:00:37]} 54.
c3 {[%clk 00:03:48]} {[%emt 00:00:26]} Rh1 {[%clk 00:08:54]} {[%emt 00:00:38]}
55. Kb3 {[%clk 00:03:41]} {[%emt 00:00:36]} h4 {[%clk 00:08:52]} {[%emt
00:00:31]} 56. Ra2 {[%clk 00:01:56]} {[%emt 00:02:16]} h3 {[%clk 00:08:25]}
{[%emt 00:00:57]} 57. a4 {[%clk 00:01:01]} {[%emt 00:01:25]} Ka5 {[%clk
00:04:04]} {[%emt 00:04:51]} 58. Kc4 {[%clk 00:01:04]} {[%emt 00:00:28]} Rg1
{[%clk 00:03:59]} {[%emt 00:00:35]} 59. Rh2 {[%clk 00:01:03]} {[%emt 00:00:31]}
Rg4+ {[%clk 00:03:51]} {[%emt 00:00:37]} 60. Kb3 {[%clk 00:01:05]} {[%emt
00:00:28]} Rg3 {[%clk 00:03:03]} {[%emt 00:01:18]} 61. Rf2 {[%clk 00:00:49]}
{[%emt 00:00:44]} Rg5 {[%clk 00:02:55]} {[%emt 00:00:41]} 62. Rh2 {[%clk
00:01:13]} {[%emt 00:00:05]} Rh5 {[%clk 00:02:52]} {[%emt 00:00:33]} 63. c4
{[%clk 00:01:31]} {[%emt 00:00:12]} Rh4 {[%clk 00:02:30]} {[%emt 00:00:52]} 64.
Kc3 {[%clk 00:01:15]} {[%emt 00:00:46]} Rh5 {[%clk 00:02:52]} {[%emt 00:00:07]}
1/2-1/2

[Event "Estonian Chess Championship 2021"]
[Site "Tallinn, Paul Keres Chess House, Estonia"]
[Date "2021.12.15"]
[Round "5.2"]
[White "Hansson, Markus"]
[Black "Timoshin, Andrei"]
[Result "0-1"]
[TimeControl "90 minutes for first 40 moves and 15 min. for the rest of the game with 30 sec."]
[WhiteFideId "4505620"]
[BlackFideId "4503503"]
[WhiteElo "1662"]
[BlackElo "2150"]

1. c4 {[%clk 01:30:58]} {[%emt 20:31:08]} c5 {[%clk 01:24:29]} 2. Nc3 {[%clk
01:31:01]} Nc6 {[%clk 01:24:42]} 3. g3 {[%clk 01:30:53]} g6 {[%clk 01:24:16]} 4.
Bg2 {[%clk 01:30:59]} Bg7 {[%clk 01:24:44]} 5. e4 {[%clk 01:30:24]} d6 {[%clk
01:21:54]} 6. Nge2 {[%clk 01:29:07]} e6 {[%clk 01:17:59]} 7. O-O {[%clk
01:28:49]} Rb8 {[%clk 01:17:26]} 8. d3 {[%clk 01:28:07]} a6 {[%clk 01:16:32]} 9.
a4 {[%clk 01:27:58]} Nge7 {[%clk 01:16:14]} 10. Be3 {[%clk 01:23:51]} O-O
{[%clk 01:16:17]} 11. d4 {[%clk 01:18:33]} {[%emt 00:00:06]} cxd4 12. Nxd4
{[%clk 01:18:36]} e5 {[%clk 01:08:49]} 13. Nc2 {[%clk 01:15:56]} Be6 {[%clk
01:02:22]} {[%emt 00:05:59]} 14. Nd5 {[%clk 01:08:27]} {[%emt 00:07:58]} b5
{[%clk 01:00:44]} {[%emt 00:02:09]} 15. cxb5 {[%clk 01:03:26]} {[%emt
00:05:32]} axb5 {[%clk 01:01:00]} {[%emt 00:00:14]} 16. b3 {[%clk 01:02:43]}
{[%emt 00:01:13]} bxa4 {[%clk 00:52:55]} {[%emt 00:08:34]} 17. bxa4 {[%clk
01:02:15]} {[%emt 00:00:57]} Bxd5 {[%clk 00:52:42]} {[%emt 00:00:43]} 18. exd5
{[%clk 01:02:36]} {[%emt 00:00:10]} Na5 {[%clk 00:53:03]} {[%emt 00:00:08]} 19.
Rb1 {[%clk 00:52:02]} {[%emt 00:11:04]} Qd7 {[%clk 00:47:30]} {[%emt 00:06:04]}
20. Nb4 {[%clk 00:35:44]} {[%emt 00:16:47]} Rfc8 {[%clk 00:45:14]} {[%emt
00:02:46]} 21. Re1 {[%clk 00:34:09]} {[%emt 00:02:05]} e4 {[%clk 00:13:20]}
{[%emt 00:32:25]} 22. Bd2 {[%clk 00:24:33]} {[%emt 00:10:06]} f5 {[%clk
00:12:22]} {[%emt 00:01:27]} 23. Bf1 {[%clk 00:23:38]} {[%emt 00:01:26]} Nc4
{[%clk 00:12:05]} {[%emt 00:00:47]} 24. Bxc4 {[%clk 00:21:06]} {[%emt
00:03:02]} Rxc4 {[%clk 00:12:31]} {[%emt 00:00:04]} 25. Qb3 {[%clk 00:16:13]}
{[%emt 00:05:23]} Rc5 {[%clk 00:07:49]} {[%emt 00:05:12]} 26. Rbc1 {[%clk
00:12:39]} {[%emt 00:04:04]} Ra5 {[%clk 00:07:34]} {[%emt 00:00:44]} 27. Qc2
{[%clk 00:12:03]} {[%emt 00:01:07]} Rxa4 {[%clk 00:06:47]} {[%emt 00:01:17]} 28.
Nc6 {[%clk 00:11:37]} {[%emt 00:00:57]} Rba8 {[%clk 00:06:57]} {[%emt
00:00:20]} 29. Bg5 {[%clk 00:07:15]} {[%emt 00:04:52]} Bf8 {[%clk 00:07:04]}
{[%emt 00:00:23]} 30. Red1 {[%clk 00:06:10]} {[%emt 00:01:34]} Nc8 {[%clk
00:01:18]} {[%emt 00:06:15]} 31. Nd4 {[%clk 00:05:31]} {[%emt 00:01:09]} Bg7
{[%clk 00:00:52]} {[%emt 00:00:56]} 32. Ne6 {[%clk 00:05:56]} {[%emt 00:00:06]}
Be5 {[%clk 00:01:06]} {[%emt 00:00:16]} 33. Qb3 {[%clk 00:05:42]} {[%emt
00:00:44]} Ra1 {[%clk 00:00:55]} {[%emt 00:00:41]} 34. Kg2 {[%clk 00:05:39]}
{[%emt 00:00:33]} R1a3 {[%clk 00:00:47]} {[%emt 00:00:38]} 35. Qb4 {[%clk
00:05:24]} {[%emt 00:00:45]} R3a7 {[%clk 00:00:47]} {[%emt 00:00:30]} 36. Rc6
{[%clk 00:05:42]} {[%emt 00:00:12]} Rb7 {[%clk 00:00:42]} {[%emt 00:00:35]} 37.
Qd2 {[%clk 00:04:30]} {[%emt 00:01:42]} Ne7 {[%clk 00:00:37]} {[%emt 00:00:34]}
38. Bxe7 {[%clk 00:04:26]} {[%emt 00:00:34]} Qxe7 {[%clk 00:01:06]} {[%emt
00:00:01]} 39. Rdc1 {[%clk 00:04:34]} {[%emt 00:00:21]} f4 {[%clk 00:00:36]}
{[%emt 00:01:00]} 40. Rc8+ {[%clk 00:18:51]} {[%emt 00:01:14]} Rxc8 {[%clk
00:15:56]} {[%emt 00:00:10]} 41. Rxc8+ {[%clk 00:19:20]} {[%emt 00:00:01]} Kf7
{[%clk 00:16:03]} {[%emt 00:00:23]} 42. Rf8+ {[%clk 00:19:43]} {[%emt
00:00:06]} Qxf8 {[%clk 00:16:24]} {[%emt 00:00:09]} 43. Nxf8 {[%clk 00:20:08]}
{[%emt 00:00:05]} f3+ {[%clk 00:11:16]} {[%emt 00:05:38]} 44. Kh3 {[%clk
00:20:27]} {[%emt 00:00:11]} Kxf8 {[%clk 00:11:33]} {[%emt 00:00:12]} 45. Qa5
{[%clk 00:16:04]} {[%emt 00:04:53]} Rf7 {[%clk 00:11:08]} {[%emt 00:00:55]} 46.
Qe1 {[%clk 00:07:01]} {[%emt 00:09:33]} Bd4 {[%clk 00:09:07]} {[%emt 00:02:31]}
47. Qxe4 {[%clk 00:01:57]} {[%emt 00:05:35]} Bxf2 {[%clk 00:09:12]} {[%emt
00:00:24]} 48. Qd3 {[%clk 00:02:08]} {[%emt 00:00:19]} Bc5 {[%clk 00:07:48]}
{[%emt 00:01:53]} 49. Qf1 {[%clk 00:02:05]} {[%emt 00:00:34]} h5 {[%clk
00:02:29]} {[%emt 00:05:50]} 50. g4 {[%clk 00:01:53]} {[%emt 00:00:42]} hxg4+
{[%clk 00:02:41]} {[%emt 00:00:18]} 51. Kxg4 {[%clk 00:02:19]} {[%emt
00:00:03]} f2 {[%clk 00:02:48]} {[%emt 00:00:23]} 52. Kg3 {[%clk 00:02:28]}
{[%emt 00:00:21]} Rf5 {[%clk 00:02:15]} {[%emt 00:01:03]} 53. h4 {[%clk
00:02:36]} {[%emt 00:00:22]} Kg8 {[%clk 00:01:53]} {[%emt 00:00:52]} 54. Kg2
{[%clk 00:01:53]} {[%emt 00:01:13]} Kh7 {[%clk 00:02:22]} {[%emt 00:00:02]} 55.
h5 {[%clk 00:01:09]} {[%emt 00:01:14]} Rg5+ {[%clk 00:02:06]} {[%emt 00:00:45]}
56. Kh2 {[%clk 00:01:34]} {[%emt 00:00:05]} Rxh5+ {[%clk 00:02:21]} {[%emt
00:00:16]} 57. Kg3 {[%clk 00:01:41]} {[%emt 00:00:23]} Rg5+ {[%clk 00:02:18]}
{[%emt 00:00:33]} 58. Kf4 {[%clk 00:02:08]} {[%emt 00:00:04]} Rf5+ {[%clk
00:02:01]} {[%emt 00:00:47]} 59. Kg3 {[%clk 00:01:56]} {[%emt 00:00:41]} Kg8
{[%clk 00:02:16]} {[%emt 00:00:15]} 60. Kg4 {[%clk 00:01:33]} {[%emt 00:00:53]}
Kf7 {[%clk 00:01:47]} {[%emt 00:00:59]} 61. Kg3 {[%clk 00:00:50]} {[%emt
00:01:14]} Rg5+ {[%clk 00:01:40]} {[%emt 00:00:36]} 62. Kh4 {[%clk 00:01:02]}
{[%emt 00:00:18]} Rg1 {[%clk 00:01:37]} {[%emt 00:00:33]} 63. Qe2 {[%clk
00:01:28]} {[%emt 00:00:05]} g5+ {[%clk 00:00:36]} {[%emt 00:01:31]} 64. Kh5
{[%clk 00:01:45]} {[%emt 00:00:12]} Rh1+ {[%clk 00:00:35]} {[%emt 00:00:32]} 65.
Kxg5 {[%clk 00:01:57]} {[%emt 00:00:18]} Rg1+ {[%clk 00:00:47]} {[%emt
00:00:18]} 66. Kh6 {[%clk 00:02:04]} {[%emt 00:00:23]} Rh1+ {[%clk 00:00:40]}
{[%emt 00:00:37]} 67. Kg5 {[%clk 00:02:30]} {[%emt 00:00:04]} f1=Q {[%clk
00:00:55]} {[%emt 00:00:15]} 68. Qe6+ {[%clk 00:02:52]} {[%emt 00:00:08]} Kf8
{[%clk 00:01:15]} {[%emt 00:00:09]} 69. Qc8+ {[%clk 00:02:54]} {[%emt
00:00:28]} Kg7 {[%clk 00:01:31]} {[%emt 00:00:14]} 70. Qb7+ {[%clk 00:01:28]}
{[%emt 00:01:57]} Qf7 {[%clk 00:01:20]} {[%emt 00:00:41]} 71. Qb2+ {[%clk
00:01:54]} {[%emt 00:00:05]} Kg8 {[%clk 00:01:44]} {[%emt 00:00:06]} 72. Qb8+
{[%clk 00:02:12]} {[%emt 00:00:12]} Qf8 {[%clk 00:02:10]} {[%emt 00:00:03]} 0-1